bitfinex-derivatives/quotes_ETHF0:USTF0_20240831
["timestamp","ask_amount","ask_price","bid_price","bid_amount"]
[1725119744587,0.00595593,2519.1,2519.0,0.59677]
[1725119746794,0.00595593,2519.1,2519.0,0.23817]
[1725119750782,0.00595593,2519.1,2519.0,0.62467]
[1725119753891,0.00595593,2519.1,2519.0,5.18971]
[1725119758492,0.00595593,2519.1,2519.0,11.18971]
[1725119759389,0.3521,2519.5,2519.3,0.23814]
[1725119759587,0.3521,2519.5,2519.0,0.98194]
[1725119759796,0.3521,2519.5,2519.4,0.23814]
[1725119760897,1.7821,2519.5,2519.3,0.23814]
[1725119761490,2.02023,2519.5,2519.3,0.23814]
[1725119761792,1.7821,2519.5,2519.3,0.23814]
[1725119762691,1.7821,2519.5,2518.9,4.5104]
[1725119762692,0.23816,2519.2,2518.9,4.39618]
[1725119762891,1.0908,2519.1,2518.9,0.23818]
[1725119763898,3.2078,2519.0,2518.9,0.23818]
[1725119764086,1.0908,2519.1,2518.9,0.23818]
[1725119770800,1.0908,2519.1,2518.7,0.00595593]
[1725119770998,0.23823,2518.4,2518.2,1.39005686]
[1725119771199,0.3748,2518.3,2518.2,1.39005686]
[1725119771397,0.3748,2518.3,2518.2,1.62830686]
[1725119771398,0.7363,2518.3,2518.2,1.62830686]
[1725119771994,0.7363,2518.3,2518.2,0.23825]
[1725119773101,0.7363,2518.3,2518.2,1.66825]
[1725119773295,0.3748,2518.3,2518.2,5.63945]
[1725119779005,0.3748,2518.3,2518.2,1.66825]
[1725119779209,0.3748,2518.3,2518.2,0.23825]
[1725119780707,4.346,2518.3,2518.2,0.23825]
[1725119781703,4.346,2518.3,2518.1,0.23825]
[1725119781908,0.385,2518.2,2518.1,0.23825]
[1725119788102,0.385,2518.2,2518.0,0.24421593]
[1725119788308,0.3795,2518.1,2518.0,0.24421593]
[1725119790013,0.3795,2518.1,2518.0,0.00595593]
[1725119791907,0.61776,2518.1,2518.0,0.00595593]
[1725119793313,0.3795,2518.1,2518.0,0.00595593]
[1725119793519,0.385,2518.2,2518.0,0.24422593]
[1725119794011,0.23824,2518.3,2518.0,0.24422593]
[1725119794216,3.2078,2518.4,2518.3,0.23824]
[1725119795915,3.21375593,2518.5,2518.3,0.23824]
[1725119796306,0.3715,2518.4,2518.3,0.23824]
[1725119797320,0.7587,2518.4,2518.3,0.23824]
[1725119801310,0.00595593,2518.5,2518.4,0.23823]
[1725119817634,0.00595593,2518.5,2518.4,5.63863]
[1725119817831,0.3557,2519.0,2518.4,11.99598]
[1725119818021,0.3557,2519.0,2518.8,0.23818]
[1725119818227,0.3557,2519.0,2518.9,0.23818]
[1725119820029,0.3557,2519.0,2518.8,0.23819]
[1725119820422,1.7857,2519.0,2518.5,4.3003]
[1725119820635,0.3845,2518.9,2518.7,0.2382]
[1725119821027,0.3845,2518.9,2518.5,4.3003]
[1725119821028,1.43,2518.8,2518.6,0.23821]
[1725119821426,1.43,2518.8,2518.7,0.2382]
[1725119821631,1.7862,2518.8,2518.7,0.2382]
[1725119824238,0.3562,2518.8,2518.7,0.2382]
[1725119824430,0.3562,2519.1,2518.9,0.23818]
[1725119824825,8.62566347,2519.1,2518.9,0.23818]
[1725119827737,0.3562,2519.1,2518.9,0.23818]
[1725119831447,0.3562,2519.1,2519.0,0.23817]
[1725119834833,1.43595593,2519.2,2519.1,0.23816]
[1725119834834,0.00595593,2519.2,2519.1,0.23816]
[1725119836338,1.43595593,2519.2,2519.1,0.23816]
[1725119837644,0.00595593,2519.2,2519.1,0.23816]
[1725119839548,0.36195593,2519.2,2519.1,0.23816]
[1725119841938,0.00595593,2519.2,2519.1,0.23816]
[1725119842137,0.00595593,2519.2,2519.1,5.63776]
[1725119845143,0.00595593,2519.2,2519.1,4.20776]
[1725119845450,0.00595593,2519.2,2519.1,0.23816]
[1725119856466,0.00595593,2519.2,2519.1,4.20776]
[1725119858655,0.00595593,2519.2,2519.1,5.63776]
[1725119863556,0.00595593,2519.2,2519.1,0.23816]
[1725119864965,0.00595593,2519.2,2519.1,5.63776]
[1725119876374,0.3575,2519.5,2519.4,0.23814]
[1725119877058,0.3575,2519.5,2519.4,0.62324]
[1725119880770,0.3575,2519.5,2519.0,5.67596106]
[1725119880970,0.3575,2519.5,2519.3,0.23814]
[1725119881175,0.3575,2519.5,2519.2,0.23815]
[1725119881868,0.3575,2519.5,2519.3,0.23814]
[1725119882665,4.3263,2519.5,2519.2,3.44595]
[1725119882964,0.3575,2519.5,2519.2,3.44595]
[1725119883457,0.59563,2519.5,2519.3,0.23814]
[1725119883772,0.3575,2519.5,2519.3,0.23814]
[1725119883957,4.3263,2519.5,2519.3,0.23814]
[1725119885970,4.56443,2519.5,2519.3,0.23814]
[1725119886477,4.56443,2519.5,2519.2,3.44595]
[1725119886672,0.23814,2519.4,2519.1,0.23816]
[1725119886975,0.7351,2519.3,2519.2,0.23815]
[1725119887170,0.7351,2519.3,2519.1,0.23816]
[1725119887375,0.3847,2519.2,2519.1,0.23816]
[1725119889867,0.3847,2519.2,2519.1,0.62446]
[1725119890067,0.3526,2519.3,2519.2,0.23815]
[1725119890362,0.3526,2519.3,2519.1,0.23816]
[1725119891368,0.3725,2519.2,2519.1,0.23816]
[1725119898781,0.3725,2519.2,2519.0,1.66817]
[1725119899082,0.3564,2519.1,2519.0,1.66817]
[1725119899485,0.3564,2519.1,2518.9,1.40516106]
[1725119899486,0.3564,2519.1,2518.9,1.64334106]
[1725119899673,0.3564,2519.1,2518.9,0.60518]
[1725119901587,0.3725,2519.2,2519.0,0.23817]
[1725119904078,0.3725,2519.2,2519.0,1.66817]
[1725119907784,0.3725,2519.2,2519.1,0.23816]
[1725119907985,0.3725,2519.2,2519.1,0.59386]
[1725119908193,0.3725,2519.2,2519.1,0.23816]
[1725119908385,0.3725,2519.2,2519.0,1.43]
[1725119908386,0.3725,2519.2,2519.0,1.66817]
[1725119909389,0.3725,2519.2,2519.1,0.23816]
[1725119911491,3.58,2519.5,2519.3,0.23814]
[1725119911694,4.20363,2519.5,2519.2,0.23815]
[1725119911992,4.20363,2519.5,2519.3,0.371]
[1725119912592,4.20363,2519.5,2519.3,0.60914]
[1725119917703,0.99583,2519.5,2519.3,0.60914]
[1725119917894,4.20363,2519.5,2519.3,0.60914]
[1725119918595,0.99583,2519.5,2519.3,0.60914]
[1725119919198,4.20363,2519.5,2519.3,0.60914]
[1725119919697,4.20363,2519.5,2519.3,0.371]
[1725119923487,0.99583,2519.5,2519.3,0.371]
[1725119923692,4.20363,2519.5,2519.3,0.371]
[1725119923899,4.20363,2519.5,2519.3,0.60914]
[1725119925801,0.99583,2519.5,2519.3,0.60914]
[1725119925999,4.20363,2519.5,2519.3,0.60914]
[1725119926200,4.20363,2519.5,2519.3,0.371]
[1725119926701,0.23814,2519.4,2519.1,0.23816]
[1725119927298,0.23814,2519.4,2519.2,0.23815]
[1725119929702,0.23814,2519.4,2519.1,0.23816]
[1725119930099,3.85875699,2519.4,2519.1,0.23816]
[1725119930299,0.23814,2519.4,2519.1,0.23816]
[1725119930700,3.85875699,2519.4,2519.1,0.23816]
[1725119931405,0.23815,2519.3,2519.1,0.23816]
[1725119931605,3.85875699,2519.4,2519.1,0.23816]
[1725119931804,0.3546,2519.2,2519.1,0.23816]
[1725119932294,0.3546,2519.2,2518.8,4.99766106]
[1725119932498,0.23818,2518.9,2518.7,7.01086106]
[1725119932696,0.3546,2518.8,2518.7,6.2109]
[1725119933094,0.3546,2518.8,2518.7,10.1813]
[1725119933501,0.3546,2518.8,2518.7,6.2109]
[1725119935501,0.3546,2518.8,2518.7,2.0529]
[1725119938509,0.95957,2519.1,2518.8,0.23819]
[1725119938705,0.23815,2519.3,2518.9,0.23818]
[1725119938907,0.23815,2519.3,2519.0,0.7353]
[1725119939711,0.23815,2519.3,2519.0,0.97347]
[1725119939916,1.1259,2519.4,2519.0,0.7353]
[1725119939917,0.23816,2519.2,2519.0,0.7353]
[1725119940510,0.3852,2519.1,2518.9,0.23818]
[1725119940710,0.773,2519.0,2518.9,0.23818]
[1725119941699,0.773,2519.0,2518.8,0.23819]
[1725119942107,4.98078,2519.0,2518.8,0.23819]
[1725119943220,4.98078,2519.0,2518.7,0.2382]
[1725119943409,1.01118,2519.0,2518.7,0.2382]
[1725119944903,0.23818,2518.9,2518.7,0.2382]
[1725119945515,0.3799,2518.8,2518.6,0.23821]
[1725119945702,0.3799,2518.8,2518.5,1.43]
[1725119946015,0.3799,2518.8,2518.5,0.23822]
[1725119946314,0.2382,2518.7,2518.5,0.23822]
[1725119946506,0.6181,2518.8,2518.5,0.23822]
[1725119946708,0.6181,2518.8,2518.6,0.23821]
[1725119947113,0.773,2519.0,2518.7,0.3676]
[1725119947114,0.23819,2518.9,2518.7,0.3676]
[1725119947416,0.7721,2519.0,2518.7,2.1665]
[1725119947612,0.3852,2519.0,2518.8,0.3814]
[1725119947910,6.1358,2519.1,2518.9,0.23818]
[1725119948214,0.23814,2519.4,2519.0,1.43]
[1725119948414,0.23814,2519.4,2519.2,0.23815]
[1725119948715,0.23814,2519.4,2519.1,0.60576]
[1725119949014,0.23814,2519.3,2519.1,0.60576]
[1725119949412,0.3852,2519.2,2519.1,0.60576]
[1725119950105,0.23816,2519.1,2518.9,0.23818]
[1725119950311,0.97096,2519.1,2518.9,0.23818]
[1725119951205,0.7328,2519.1,2518.9,0.23818]
[1725119953407,0.7328,2519.1,2519.0,0.23817]
[1725119954014,0.3852,2519.2,2519.1,0.23816]
[1725119955115,0.3852,2519.2,2518.8,0.747]
[1725119955116,0.3852,2519.2,2519.0,0.23817]
[1725119956312,0.3766,2519.4,2519.2,0.23815]
[1725119956512,0.7641,2519.4,2519.2,0.23815]
[1725119957319,3.2078,2519.5,2519.3,1.43]
[1725119957621,10.94518568,2519.7,2519.4,1.36223]
[1725119957622,0.24406593,2519.7,2519.4,1.36223]
[1725119958927,0.24406593,2519.7,2519.5,0.23812]
[1725119959423,0.00595593,2519.7,2519.6,0.23812]
[1725119960022,0.00595593,2519.7,2519.5,0.23812]
[1725119960326,0.00595593,2519.7,2519.4,0.7567]
[1725119960327,0.00595593,2519.7,2519.6,0.23812]
[1725119960624,0.00595593,2519.7,2519.4,0.7567]
[1725119960625,0.00595593,2519.7,2519.5,0.23812]
[1725119961818,0.24406593,2519.7,2519.5,0.23812]
[1725119962020,0.23812,2519.6,2519.4,0.99483]
[1725119962215,0.367,2519.5,2519.4,0.23813]
[1725119962417,1.097,2519.5,2519.3,0.24409593]
[1725119963324,1.33513,2519.5,2519.3,0.24409593]
[1725119964316,1.33513,2519.5,2519.3,0.00595593]
[1725119964519,0.23814,2519.4,2519.3,0.00595593]
[1725119965524,4.20774,2519.4,2519.3,0.00595593]
[1725119968329,0.23814,2519.4,2519.3,0.00595593]
[1725119971627,4.54293,2519.5,2519.3,0.00595593]
[1725119971931,0.23814,2519.4,2519.3,0.00595593]
[1725119975425,0.23814,2519.4,2519.3,0.36595593]
[1725119976535,1.33513,2519.5,2519.3,0.36595593]
[1725119978733,0.7455,2519.5,2519.3,0.60409593]
[1725119978932,0.7455,2519.5,2519.3,0.36595593]
[1725119979131,0.3785,2519.5,2519.4,0.23814]
[1725119979435,0.3785,2519.5,2519.4,0.59424]
[1725119984044,0.61626593,2519.7,2519.4,0.59424]
[1725119984341,0.23812,2519.6,2519.5,0.3845]
[1725119984838,0.99316593,2519.7,2519.5,0.62262]
[1725119985039,0.99316593,2519.7,2519.5,0.3845]
[1725119985234,0.75505593,2519.7,2519.6,0.3555]
[1725119985437,0.00595593,2519.7,2519.6,0.59362]
[1725119986234,0.00595593,2519.7,2519.6,0.3555]
[1725119988142,0.00595593,2519.7,2519.6,0.59362]
[1725119993957,0.00595593,2519.7,2519.6,4.56242]
[1725119994942,0.00595593,2519.7,2519.6,5.99242]
[1725120000265,0.00595593,2519.7,2519.6,4.56242]
[1725120000857,0.00595593,2519.7,2519.6,0.59362]
[1725120003549,0.00595593,2519.7,2519.6,7.18892]
[1725120003953,3.63317572,2520.3,2519.8,0.59524]
[1725120004251,3.63317572,2520.3,2520.2,0.23806]
[1725120006555,3.63317572,2520.3,2520.1,0.23806]
[1725120006752,0.7236,2520.2,2520.1,0.23806]
[1725120007654,0.7236,2520.2,2520.0,0.23807]
[1725120011454,0.7236,2520.2,2519.9,1.1343]
[1725120011657,0.7236,2520.2,2520.0,0.23807]
[1725120013456,0.7236,2520.2,2519.9,1.1343]
[1725120014148,0.7236,2520.2,2520.0,0.23807]
[1725120015050,0.7236,2520.2,2520.0,0.23808]
[1725120015458,0.7236,2520.2,2520.1,0.23807]
[1725120018561,0.3703,2520.2,2520.1,0.23807]
[1725120021662,0.3704,2520.4,2520.1,0.23807]
[1725120021663,0.3704,2520.4,2520.3,0.23805]
[1725120021871,0.3545,2520.5,2520.4,0.23804]
[1725120022056,0.3545,2520.5,2520.4,0.60944]
[1725120022362,0.3545,2520.5,2520.4,0.23804]
[1725120022557,0.3545,2520.5,2520.2,0.3631]
[1725120022558,0.3545,2520.5,2520.3,0.23805]
[1725120022959,0.59253,2520.5,2520.3,0.23805]
[1725120023157,0.3545,2520.5,2520.3,0.23805]
[1725120024064,0.59253,2520.5,2520.3,0.23805]
[1725120025362,0.3545,2520.5,2520.3,0.23805]
[1725120025569,0.3545,2520.5,2520.3,0.23804]
[1725120025769,0.59253,2520.5,2520.3,0.23804]
[1725120027367,0.59253,2520.5,2520.2,0.23805]
[1725120027569,0.3545,2520.5,2520.1,0.23806]
[1725120027762,0.23806,2520.3,2520.0,0.23807]
[1725120027964,0.7099,2520.2,2520.0,0.23807]
[1725120028265,1.0834,2520.2,2520.1,0.23807]
[1725120029861,0.3735,2520.2,2520.1,1.66807]
[1725120032158,0.61156,2520.2,2519.9,8.107]
[1725120032358,0.61156,2520.2,2520.0,0.23807]
[1725120032559,0.3814,2520.1,2520.0,0.23807]
[1725120033863,0.23808,2520.0,2519.8,0.23809]
[1725120034061,0.3517,2519.9,2519.8,0.23809]
[1725120034269,0.717,2519.9,2519.8,0.23809]
[1725120035657,0.95509,2519.9,2519.7,0.602]
[1725120035859,0.717,2519.9,2519.7,0.602]
[1725120036265,0.95509,2519.9,2519.7,0.602]
[1725120036769,0.95509,2519.9,2519.7,0.2381]
[1725120037160,0.717,2519.9,2519.8,1.43]
[1725120038768,0.2381,2519.8,2519.6,4.20941]
[1725120038963,3.2078,2519.8,2519.3,0.00595593]
[1725120039160,0.23812,2519.6,2519.3,1.67409593]
[1725120039360,0.3726,2519.5,2519.3,1.67409593]
[1725120039566,0.7257,2519.5,2519.3,1.67409593]
[1725120039766,0.96383,2519.5,2519.3,1.67409593]
[1725120039975,0.7257,2519.5,2519.3,1.67409593]
[1725120040963,0.96383,2519.5,2519.3,1.43595593]
[1725120041557,0.23814,2519.4,2519.3,0.00595593]
[1725120043565,4.20774,2519.4,2519.3,0.00595593]
[1725120045286,3.9696,2519.4,2519.3,0.00595593]
[1725120046294,4.20774,2519.4,2519.3,0.00595593]
[1725120053093,3.9696,2519.4,2519.3,0.00595593]
[1725120053796,0.96383,2519.5,2519.4,0.23814]
[1725120053797,0.3531,2519.5,2519.4,0.23814]
[1725120053998,3.2078,2519.7,2519.5,0.23812]
[1725120054203,0.9762,2519.8,2519.6,0.3603]
[1725120054602,4.56341701,2519.7,2519.4,0.23813]
[1725120055497,4.32530701,2519.7,2519.3,0.39585593]
[1725120055690,0.23814,2519.4,2519.3,0.00595593]
[1725120056597,4.20774,2519.4,2519.3,0.00595593]
[1725120056804,8.77965627,2519.4,2519.3,0.00595593]
[1725120059708,14.77965627,2519.4,2519.3,0.00595593]
[1725120060003,0.23817,2519.1,2518.8,0.23818]
[1725120060196,0.23817,2519.1,2518.9,0.23818]
[1725120060502,0.3512,2519.0,2518.8,0.23819]
[1725120061091,0.58937,2519.0,2518.7,2.3917]
[1725120061405,0.58937,2519.0,2518.8,0.23819]
[1725120061704,0.3512,2519.0,2518.8,0.23819]
[1725120063298,0.3512,2519.0,2518.9,1.43]
[1725120063503,0.3512,2519.0,2518.9,2.02688]
[1725120063706,0.24411593,2519.2,2518.9,2.02688]
[1725120063904,0.63301593,2519.2,2518.9,2.02688]
[1725120064104,0.63301593,2519.2,2519.0,0.3648]
[1725120067400,0.23816,2519.1,2519.0,0.3648]
[1725120067798,0.23816,2519.1,2518.9,1.43]
[1725120067995,0.23816,2519.1,2518.8,0.23819]
[1725120069605,4.55666619,2519.0,2518.7,0.60939]
[1725120069910,0.7241,2518.9,2518.7,0.60939]
[1725120070111,1.1078,2518.9,2518.7,0.60939]
[1725120070312,4.5133174,2518.8,2518.6,0.24416593]
[1725120072108,4.7515074,2518.8,2518.6,0.24416593]
[1725120072309,4.5133174,2518.8,2518.6,0.24416593]
[1725120072612,4.5133174,2518.8,2518.7,0.2382]
[1725120072810,0.23818,2519.0,2518.7,1.6682]
[1725120073113,0.23818,2519.0,2518.8,0.3893]
[1725120073306,0.23818,2518.9,2518.8,0.7604]
[1725120074203,0.23818,2518.9,2518.6,0.24415593]
[1725120074517,0.9833,2518.8,2518.6,0.00595593]
[1725120074911,4.36297709,2518.7,2518.6,0.00595593]
[1725120076017,4.60117709,2518.7,2518.6,0.00595593]
[1725120076915,8.57157709,2518.7,2518.6,0.00595593]
[1725120079709,13.20937709,2518.7,2518.6,0.00595593]
[1725120079916,13.80488709,2518.7,2518.6,0.00595593]
[1725120083621,13.20937709,2518.7,2518.6,0.00595593]
[1725120088024,11.77937709,2518.7,2518.6,0.00595593]
[1725120088223,7.80897709,2518.7,2518.6,0.00595593]
[1725120088932,7.80897709,2518.7,2518.6,0.38845593]
[1725120089120,7.57077709,2518.7,2518.6,0.38845593]
[1725120089320,7.80897709,2518.7,2518.6,0.38845593]
[1725120089932,7.57077709,2518.7,2518.6,0.38845593]
[1725120090229,7.57077709,2518.7,2518.6,0.62666593]
[1725120090435,3.62133296,2519.1,2518.8,0.23819]
[1725120090436,3.44596,2519.1,2518.8,0.23819]
[1725120090625,3.44596,2519.1,2518.9,0.7448]
[1725120090821,0.37495593,2519.2,2518.9,0.7448]
[1725120091025,0.23816,2519.1,2519.0,0.3598]
[1725120091228,4.49413554,2519.1,2519.0,0.3598]
[1725120091522,0.23817,2519.0,2518.9,0.7448]
[1725120091722,0.23818,2518.9,2518.6,0.00595593]
[1725120091918,0.61758,2518.9,2518.6,0.60396593]
[1725120092120,4.57290609,2518.8,2518.6,0.60396593]
[1725120092718,8.8464,2518.7,2518.6,0.00595593]
[1725120093230,13.21887151,2518.7,2518.6,0.00595593]
[1725120094633,10.01107151,2518.7,2518.6,0.00595593]
[1725120095133,13.21887151,2518.7,2518.6,0.00595593]
[1725120097036,0.23823,2518.4,2518.3,0.3646]
[1725120097335,0.23824,2518.3,2518.2,0.3895]
[1725120097519,0.23826,2518.1,2518.0,0.3543]
[1725120098321,0.23825,2518.2,2518.0,0.3543]
[1725120098631,4.41566527,2518.2,2518.0,0.3543]
[1725120100025,0.23826,2518.1,2518.0,0.3543]
[1725120102729,1.66826,2518.1,2518.0,0.3543]
[1725120110729,0.23827,2518.0,2517.9,0.7216]
[1725120110934,2.05647,2518.0,2517.8,0.00595593]
[1725120111335,7.59861323,2517.9,2517.8,0.00595593]
[1725120111526,8.34141323,2517.9,2517.8,0.00595593]
[1725120112933,7.36033323,2517.9,2517.8,0.00595593]
[1725120113137,7.36033323,2517.9,2517.8,0.24424593]
[1725120113339,7.36033323,2517.9,2517.8,0.00595593]
[1725120113532,7.36033323,2517.9,2517.8,0.24424593]
[1725120116733,4.15253323,2517.9,2517.8,0.24424593]
[1725120120747,4.6378,2518.1,2518.0,0.23827]
[1725120120748,3.2078,2518.1,2518.0,0.23827]
[1725120120931,0.3589,2518.2,2518.1,0.23826]
[1725120121137,1.01225,2518.3,2518.1,0.23826]
[1725120121138,2.44225,2518.3,2518.1,0.23826]
[1725120121341,4.31160625,2518.2,2518.1,0.23826]
[1725120122137,4.31160625,2518.2,2518.0,0.62336]
[1725120122343,1.66826,2518.1,2517.9,0.7218]
[1725120122843,0.3846,2518.0,2517.9,0.7218]
[1725120123240,1.43,2518.1,2518.0,0.23827]
[1725120127643,1.43,2518.1,2518.0,4.20947]
[1725120130245,1.43,2518.1,2518.0,0.23827]
[1725120136449,1.8146,2518.3,2518.2,0.23825]
[1725120140454,2.05284,2518.3,2518.1,0.23825]
[1725120140653,1.8064,2518.2,2518.1,0.23826]
[1725120141654,1.8064,2518.2,2517.9,0.23827]
[1725120141957,2.04466,2518.2,2517.9,0.23827]
[1725120142455,1.8064,2518.2,2518.0,0.23826]
[1725120145650,0.23826,2518.1,2517.9,0.23827]
[1725120145853,0.385,2518.0,2517.9,0.23827]
[1725120146057,0.7367,2518.0,2517.9,0.23827]
[1725120146947,0.7367,2518.0,2517.8,0.24423593]
[1725120148556,0.97497,2518.0,2517.8,0.24423593]
[1725120148963,2.40497,2518.0,2517.8,0.00595593]
[1725120149358,0.23828,2517.9,2517.8,0.00595593]
[1725120149557,7.62668621,2517.9,2517.8,0.00595593]
[1725120150559,11.59868621,2517.9,2517.8,0.00595593]
[1725120150859,15.22001917,2517.9,2517.8,0.00595593]
[1725120151058,12.01221917,2517.9,2517.8,0.00595593]
[1725120151362,15.22001917,2517.9,2517.8,0.00595593]
[1725120151860,12.01221917,2517.9,2517.8,0.00595593]
[1725120152159,4.18060621,2517.9,2517.8,0.24424593]
[1725120152362,5.78803296,2518.0,2517.8,0.24424593]
[1725120153466,6.02630296,2518.0,2517.8,0.00595593]
[1725120153663,1.43,2517.9,2517.8,0.00595593]
[1725120154763,1.66828,2517.9,2517.8,0.00595593]
[1725120155171,10.01830878,2517.9,2517.8,0.00595593]
[1725120161973,13.63964174,2517.9,2517.8,0.00595593]
[1725120162473,6.04630878,2517.9,2517.8,0.00595593]
[1725120166669,10.01830878,2517.9,2517.8,0.00595593]
[1725120166964,13.63964174,2517.9,2517.8,0.00595593]
[1725120168777,16.84744174,2517.9,2517.8,0.00595593]
[1725120169173,10.01830878,2517.9,2517.8,0.00595593]
[1725120169374,13.63964174,2517.9,2517.8,0.00595593]
[1725120169571,6.04630878,2517.9,2517.8,0.00595593]
[1725120170776,4.61630878,2517.9,2517.8,0.70915593]
[1725120170969,6.04630878,2517.9,2517.8,0.70915593]
[1725120171680,5.80802878,2517.9,2517.8,0.70915593]
[1725120176084,6.04630878,2517.9,2517.8,0.70915593]
[1725120176481,6.04630878,2517.9,2517.8,0.00595593]
[1725120177386,5.80802878,2517.9,2517.8,0.00595593]
[1725120177580,6.04630878,2517.9,2517.8,0.00595593]
[1725120183776,9.66764174,2517.9,2517.8,0.00595593]
[1725120183984,6.04630878,2517.9,2517.8,0.00595593]
[1725120184371,6.04630878,2517.9,2517.8,0.24424593]
[1725120184372,4.37802878,2517.9,2517.8,0.24424593]
[1725120186080,5.80802878,2517.9,2517.8,0.24424593]
[1725120189789,5.05133296,2518.1,2517.8,3.97795593]
[1725120190081,5.05133296,2518.1,2517.8,0.00595593]
[1725120191089,5.05133296,2518.1,2518.0,0.23827]
[1725120192077,3.62133296,2518.1,2518.0,0.23827]
[1725120192386,8.64143296,2518.3,2518.2,0.23825]
[1725120192581,6.82913296,2518.3,2518.2,0.23825]
[1725120192782,4.15220083,2518.5,2518.1,4.3452]
[1725120192783,1.43,2518.4,2518.1,4.3452]
[1725120193082,5.87840372,2518.4,2518.3,0.23823]
[1725120193282,5.87840372,2518.4,2518.3,4.20943]
[1725120193493,1.43,2518.4,2518.3,4.20943]
[1725120196283,0.3514,2518.5,2518.3,0.23823]
[1725120196485,1.43,2518.4,2518.3,0.23823]
[1725120196881,1.43,2518.4,2518.2,0.23824]
[1725120197080,1.43,2518.4,2518.3,0.23824]
[1725120197284,4.32192422,2518.3,2518.1,0.3746]
[1725120197482,1.8086,2518.2,2518.1,0.3746]
[1725120197792,2.5215,2518.2,2518.1,0.3746]
[1725120198385,2.75975,2518.2,2517.9,4.75337]
[1725120198585,1.43,2518.0,2517.9,4.132]
[1725120198785,1.66827,2518.0,2517.9,4.132]
[1725120198986,6.20160521,2518.0,2517.9,4.132]
[1725120199378,5.96333521,2518.0,2517.9,4.132]
[1725120200275,6.20160521,2518.0,2517.9,4.132]
[1725120201282,5.96333521,2518.0,2517.9,4.132]
[1725120201988,0.23828,2517.9,2517.8,0.00595593]
[1725120202195,0.62118,2517.9,2517.8,0.00595593]
[1725120202380,4.91937352,2517.9,2517.8,0.00595593]
[1725120207590,4.68109352,2517.9,2517.8,0.00595593]
[1725120207898,4.68109352,2517.9,2517.8,0.36815593]
[1725120210400,4.91937352,2517.9,2517.8,0.00595593]
[1725120211298,8.54070648,2517.9,2517.8,0.00595593]
[1725120211499,4.91937352,2517.9,2517.8,0.00595593]
[1725120211804,8.54070648,2517.9,2517.8,0.00595593]
[1725120212001,4.91937352,2517.9,2517.8,0.00595593]
[1725120212498,8.54070648,2517.9,2517.8,0.00595593]
[1725120213997,12.51270648,2517.9,2517.8,0.00595593]
[1725120214908,8.89137352,2517.9,2517.8,0.00595593]
[1725120215618,1.6683,2517.7,2517.6,0.0404]
[1725120215813,4.8761,2517.7,2517.6,0.0404]
[1725120216017,9.32698339,2517.7,2517.6,1e-08]
[1725120216221,13.29898339,2517.7,2517.6,1e-08]
[1725120216516,17.52385096,2517.7,2517.6,1e-08]
[1725120218925,13.89473339,2517.7,2517.6,1e-08]
[1725120219219,13.29898339,2517.7,2517.6,1e-08]
[1725120219522,16.92810096,2517.7,2517.6,1e-08]
[1725120220317,13.29898339,2517.7,2517.6,1e-08]
[1725120227330,10.09118339,2517.7,2517.6,1e-08]
[1725120227628,13.29898339,2517.7,2517.6,1e-08]
[1725120228128,10.09118339,2517.7,2517.6,1e-08]
[1725120228629,13.29898339,2517.7,2517.6,1e-08]
[1725120228932,10.09118339,2517.7,2517.6,1e-08]
[1725120229226,13.29898339,2517.7,2517.6,1e-08]
[1725120229928,10.09118339,2517.7,2517.6,1e-08]
[1725120230124,13.29898339,2517.7,2517.6,1e-08]
[1725120233134,10.09118339,2517.7,2517.6,1e-08]
[1725120233325,13.29898339,2517.7,2517.6,1e-08]
[1725120235836,13.29898339,2517.7,2517.6,0.23831001]
[1725120235837,7.65868339,2517.7,2517.6,0.23831001]
[1725120236036,3.6350735,2517.9,2517.8,0.23829]
[1725120236037,0.00595593,2517.9,2517.8,0.23829]
[1725120236335,0.00595593,2517.9,2517.8,10.21029]
[1725120238023,0.00595593,2517.9,2517.8,4.21029]
[1725120239235,0.00595593,2517.9,2517.8,0.23829]
[1725120239434,1.43595593,2517.9,2517.8,4.21029]
[1725120239830,1.43595593,2517.9,2517.8,0.23829]
[1725120240132,1.43595593,2517.9,2517.8,4.21029]
[1725120240633,1.43595593,2517.9,2517.8,0.23829]
[1725120241730,1.43595593,2517.9,2517.7,0.23829]
[1725120241933,1.43595593,2517.9,2517.8,0.23829]
[1725120242134,5.78055913,2517.9,2517.8,0.23829]
[1725120243630,5.78055913,2517.9,2517.7,0.23829]
[1725120243631,6.01883913,2517.9,2517.7,0.23829]
[1725120243830,6.01883913,2517.9,2517.6,0.60140001]
[1725120243831,0.23829,2517.8,2517.6,0.60140001]
[1725120244030,1.43,2517.7,2517.6,0.60140001]
[1725120245839,1.6683,2517.7,2517.6,1e-08]
[1725120246137,10.20212167,2517.7,2517.6,1e-08]
[1725120246342,13.83123924,2517.7,2517.6,1e-08]
[1725120246842,10.20212167,2517.7,2517.6,1e-08]
[1725120247048,13.83367871,2517.7,2517.6,1e-08]
[1725120247542,14.21637871,2517.7,2517.6,1e-08]
[1725120247731,17.42417871,2517.7,2517.6,1e-08]
[1725120248132,13.79262167,2517.7,2517.6,1e-08]
[1725120249040,17.9448225,2517.7,2517.6,1e-08]
[1725120249637,13.79262167,2517.7,2517.6,1e-08]
[1725120249839,17.9448225,2517.7,2517.6,1e-08]
[1725120250146,13.79262167,2517.7,2517.6,1e-08]
[1725120251747,10.58482167,2517.7,2517.6,1e-08]
[1725120251943,13.79262167,2517.7,2517.6,1e-08]
[1725120252145,13.9728225,2517.7,2517.6,1e-08]
[1725120252332,17.9448225,2517.7,2517.6,1e-08]
[1725120252537,14.7370225,2517.7,2517.6,1e-08]
[1725120252941,17.9448225,2517.7,2517.6,1e-08]
[1725120254652,14.3543225,2517.7,2517.6,1e-08]
[1725120254949,13.5901225,2517.7,2517.6,1e-08]
[1725120256854,10.3823225,2517.7,2517.6,1e-08]